[Event "Nordic Chess-ch 2019"]
[Site "Sarpsborg"]
[Date "2019.06.22"]
[Round "2.13"]
[White "Ernst, Thomas"]
[Black "Sahl, Sheila Barth"]
[Result "1-0"]
[ECO "B47"]
[WhiteElo "2342"]
[BlackElo "2127"]
[Annotator "NA"]
[PlyCount "57"]
[EventDate "2019.06.21"]
[EventType "swiss"]
[EventCountry "NOR"]
[SourceTitle "playchess.com"]
[Source "ChessBase"]
[SourceQuality "1"]
[TimeControl "40/5400+30:1800+30"]

1. e4 {[%emt 0:00:00]} c5 {[%emt 0:00:00]} 2. Nf3 {[%emt 0:00:00]} e6 {[%emt 0:00:00]} 3. d4 {[%emt 0:00:02]} cxd4 {[%emt 0:00:00]} 4. Nxd4 {[%emt 0:00:05]} Nc6 {[%emt 0:00:09]} 5. Nc3 {[%emt 0:00:15]} Qc7 {[%emt 0:00:28]} 6. g3 {[%emt 0:00:24]} a6 {[%emt 0:00:40]} 7. Bg2 {[%emt 0:00:17]} Nge7 {[%emt 0:00:44]} 8. Nb3 {[%emt 0:01:32]} Ne5 {[%emt 0:01:23]} 9. O-O {[%emt 0:03:15]} Nc4 {[%emt 0:02:12]} 10. Nd2 {[%emt 0:11:24]} Nxd2 {[%emt 0:05:39]} 11. Bxd2 {[%emt 0:00:11]} Nc6 {[%emt 0:00:28]} 12. Re1 {[%emt 0:06:42]} Be7 {[%emt 0:04:40]} 13. Be3 {[%emt 0:03:10]} b5 {[%emt 0:02:43]} 14. Nd5 {[%emt 0:04:35]} Qd6 {[%emt 0:24:49]} 15. e5 {[%emt 0:06:22]} Qb8 {[%emt 0:14:41]} 16. Nb6 {[%emt 0:03:01]} a5 {[%emt 0:00:53]} 17. Bxc6 {[%emt 0:02:59]} dxc6 {[%emt 0:00:22]} 18. Nxa8 {[%emt 0:00:06]} Qxa8 {[%emt 0:00:09]} 19. Qg4 {[%emt 0:00:42]} Kf8 {[%emt 0:00:58]} 20. Bg5 {[%emt 0:00:28]} Qb7 {[%emt 0:07:09]} 21. Rad1 {[%emt 0:01:38]} h5 {[%emt 0:04:14]} 22. Qh4 {[%emt 0:01:55]} Bxg5 23. Qxg5 {[%emt 0:00:37]} Bd7 {[%emt 0:01:53]} 24. h4 {[%emt 0:01:11]} c5 {[%emt 0:00:37]} 25. Rd6 {[%emt 0:00:44]} Be8 {[%emt 0:04:07]} 26. Red1 {[%emt 0:00:44]} Qf3 {[%emt 0:00:10]} 27. Rd8 {[%emt 0:00:41]} f6 {[%emt 0:00:10]} 28. Rxe8+ {[%emt 0:07:06]} Kxe8 {[%emt 0:00:16]} 29. Qg6+ {[%emt 0:00:16]} 1-0

[Event "Nordic Chess-ch 2019"]
[Site "Sarpsborg"]
[Date "2019.06.22"]
[Round "2.14"]
[White "Dingertz, Filip"]
[Black "Cederstam Barsk, Carl"]
[Result "0-1"]
[ECO "B12"]
[WhiteElo "1111"]
[BlackElo "2334"]
[Annotator "NA"]
[PlyCount "34"]
[EventDate "2019.06.21"]
[EventType "swiss"]
[EventCountry "NOR"]
[SourceTitle "playchess.com"]
[Source "ChessBase"]
[SourceQuality "1"]
[TimeControl "40/5400+30:1800+30"]

1. e4 {[%emt 0:00:00]} c6 {[%emt 0:00:16]} 2. d4 {[%emt 0:01:26]} d5 {[%emt 0:00:09]} 3. e5 {[%emt 0:00:23]} Na6 {[%emt 0:00:57]} 4. Nf3 {[%emt 0:02:47]} g6 {[%emt 1:30:38]} 5. Bg5 {[%emt 0:06:49]} f6 {[%emt 0:00:00]} 6. exf6 {[%emt 0:01:49]} exf6 {[%emt 0:01:00]} 7. Be3 {[%emt 0:01:47]} Ne7 {[%emt 0:00:00]} 8. Qd2 {[%emt 0:02:16]} Nc7 {[%emt 0:00:00]} 9. c4 {[%emt 0:01:37]} Be6 {[%emt 0:00:00]} 10. b3 {[%emt 0:05:04]} Nf5 {[%emt 0:00:00]} 11. Nc3 {[%emt 0:04:29]} Qd7 {[%emt 0:00:00]} 12. a4 {[%emt 0:01:54]} Bb4 {[%emt 0:00:00]} 13. Qd3 {[%emt 0:02:23]} Nd6 {[%emt 0:00:00]} 14. Nd2 {[%emt 0:01:31]} Bf5 {[%emt 0:00:00]} 15. Nce4 {[%emt 0:05:46]} Nxe4 {[%emt 0:00:00]} 16. Qe2 {[%emt 0:00:52]} O-O {[%emt 0:00:00]} 17. Kd1 {[%emt 0:04:03]} Nc3+ {[%emt 0:00:00]} 0-1

[Event "Nordic Chess-ch 2019"]
[Site "Sarpsborg"]
[Date "2019.06.22"]
[Round "2.15"]
[White "Tryggestad, Andreas Garberg"]
[Black "Rishovd, Svein"]
[Result "1-0"]
[ECO "D41"]
[WhiteElo "2324"]
[BlackElo "2113"]
[Annotator "NA"]
[PlyCount "91"]
[EventDate "2019.06.21"]
[EventType "swiss"]
[EventCountry "NOR"]
[SourceTitle "playchess.com"]
[Source "ChessBase"]
[SourceQuality "1"]
[TimeControl "40/5400+30:1800+30"]

1. d4 {[%emt 0:00:12]} d5 {[%emt 0:00:00]} 2. c4 {[%emt 0:00:03]} e6 {[%emt 0:00:00]} 3. Nf3 {[%emt 0:00:04]} Nf6 {[%emt 0:00:00]} 4. Nc3 {[%emt 0:00:05]} c5 {[%emt 0:00:05]} 5. cxd5 {[%emt 0:01:10]} Nxd5 {[%emt 0:00:09]} 6. e4 {[%emt 0:02:00]} Nxc3 {[%emt 0:00:10]} 7. bxc3 {[%emt 0:00:07]} cxd4 {[%emt 0:00:06]} 8. cxd4 {[%emt 0:00:06]} Bb4+ {[%emt 0:00:04]} 9. Bd2 {[%emt 0:00:07]} Bxd2+ {[%emt 0:00:06]} 10. Qxd2 {[%emt 0:00:05]} O-O {[%emt 0:00:06]} 11. Be2 {[%emt 0:01:29]} b6 {[%emt 0:00:28]} 12. O-O {[%emt 0:00:55]} Bb7 {[%emt 0:00:10]} 13. Qf4 {[%emt 0:00:38]} Nc6 {[%emt 0:12:50]} 14. Rfd1 {[%emt 0:00:07]} Qe7 {[%emt 0:03:11]} 15. Bb5 {[%emt 0:06:05]} a6 {[%emt 0:13:13]} 16. Bf1 {[%emt 0:05:32]} Rfd8 {[%emt 0:08:09]} 17. d5 {[%emt 0:02:09]} Na5 {[%emt 0:00:58]} 18. d6 {[%emt 0:00:52]} Qf6 {[%emt 0:08:03]} 19. Qe3 {[%emt 0:01:51]} Rab8 {[%emt 0:22:09]} 20. Qxb6 {[%emt 0:00:46]} Nc6 {[%emt 0:01:04]} 21. Bxa6 {[%emt 0:24:01]} Ba8 {[%emt 0:00:31]} 22. Qc5 {[%emt 0:00:51]} Nb4 {[%emt 0:02:45]} 23. Bb5 {[%emt 0:02:31]} Bxe4 {[%emt 0:02:59]} 24. Nd4 {[%emt 0:12:26]} Nc2 {[%emt 0:09:44]} 25. Nxc2 {[%emt 0:08:58]} Rdc8 {[%emt 0:02:37]} 26. Qb4 {[%emt 0:11:05]} Bxc2 {[%emt 0:00:38]} 27. Rdc1 {[%emt 0:00:19]} Qe5 {[%emt 0:06:50]} 28. a4 {[%emt 0:00:47]} Rd8 {[%emt 0:03:21]} 29. Qa3 {[%emt 0:01:39]} Be4 {[%emt 0:02:07]} 30. Qe3 {[%emt 0:00:15]} Qf5 {[%emt 0:00:58]} 31. d7 {[%emt 0:00:11]} Bd5 {[%emt 0:00:28]} 32. Ra3 {[%emt 0:00:52]} Qg6 {[%emt 0:00:48]} 33. f3 {[%emt 0:01:25]} f5 {[%emt 0:00:34]} 34. Rac3 {[%emt 0:00:17]} Rxb5 {[%emt 0:00:39]} 35. axb5 {[%emt 0:00:07]} Rxd7 {[%emt 0:00:04]} 36. Rc7 {[%emt 0:00:20]} Rd8 {[%emt 0:01:16]} 37. Rc8 {[%emt 0:00:36]} Qf6 {[%emt 0:00:12]} 38. b6 {[%emt 0:06:48]} h6 {[%emt 0:00:17]} 39. b7 {[%emt 0:01:09]} Bxb7 {[%emt 0:00:19]} 40. Rxd8+ {[%emt 0:00:06]} Qxd8 {[%emt 0:00:06]} 41. Qxe6+ {[%emt 0:30:05]} Kh8 {[%emt 0:31:34]} 42. Qxf5 {[%emt 0:00:10]} Qe8 {[%emt 0:00:00]} 43. Kh1 {[%emt 0:00:00]} Bc6 {[%emt 0:00:00]} 44. Qd3 {[%emt 0:00:00]} Qe7 {[%emt 0:00:00]} 45. Rd1 {[%emt 0:00:00]} Be8 {[%emt 0:00:00]} 46. Qe4 {[%emt 0:13:39]} 1-0

[Event "Nordic Chess-ch 2019"]
[Site "Sarpsborg"]
[Date "2019.06.22"]
[Round "2.16"]
[White "Dragicevic, Drazen"]
[Black "Gonzalez, Francisco Silva"]
[Result "1-0"]
[ECO "D11"]
[WhiteElo "2359"]
[BlackElo "2095"]
[Annotator "NA"]
[PlyCount "91"]
[EventDate "2019.06.21"]
[EventType "swiss"]
[EventCountry "NOR"]
[SourceTitle "playchess.com"]
[Source "ChessBase"]
[SourceQuality "1"]
[TimeControl "40/5400+30:1800+30"]

1. Nf3 {[%emt 1:30:30]} d5 {[%emt 0:13:41]} 2. d4 {[%emt 0:00:00]} Nf6 {[%emt 0:01:05]} 3. g3 {[%emt 0:00:00]} Bf5 {[%emt 0:00:30]} 4. Bg2 {[%emt 0:00:00]} c6 {[%emt 0:00:30]} 5. O-O {[%emt 0:00:00]} e6 {[%emt 0:00:13]} 6. c4 {[%emt 0:00:00]} Nbd7 {[%emt 0:00:49]} 7. Qb3 {[%emt 0:00:00]} Qb6 {[%emt 0:00:06]} 8. Nc3 {[%emt 0:00:00]} Be7 {[%emt 0:00:23]} 9. c5 {[%emt 0:00:00]} Qa6 {[%emt 0:01:37]} 10. Nh4 {[%emt 0:00:00]} h6 {[%emt 0:04:20]} 11. Nxf5 {[%emt 0:00:00]} exf5 {[%emt 0:00:09]} 12. Bf4 {[%emt 0:00:00]} b6 {[%emt 0:00:08]} 13. cxb6 {[%emt 0:00:00]} axb6 {[%emt 0:00:12]} 14. a3 {[%emt 0:00:00]} h5 {[%emt 0:06:50]} 15. h4 {[%emt 0:00:00]} O-O {[%emt 0:05:01]} 16. Rac1 {[%emt 0:00:00]} Rfc8 {[%emt 0:08:00]} 17. Rc2 {[%emt 0:00:00]} Qc4 {[%emt 0:00:21]} 18. Qxc4 {[%emt 0:00:00]} dxc4 {[%emt 0:00:12]} 19. Rd1 {[%emt 0:00:00]} Ra5 {[%emt 0:02:09]} 20. d5 {[%emt 0:00:00]} cxd5 21. Nxd5 {[%emt 0:00:00]} Bc5 {[%emt 0:12:49]} 22. Nxf6+ {[%emt 0:00:00]} Nxf6 {[%emt 0:00:28]} 23. Bb7 {[%emt 0:00:00]} Re8 {[%emt 0:01:15]} 24. e3 {[%emt 0:00:00]} Ra7 {[%emt 0:08:17]} 25. Bf3 {[%emt 0:00:00]} Ng4 {[%emt 0:01:36]} 26. Rd5 {[%emt 0:00:00]} g6 {[%emt 0:00:12]} 27. Rxc4 {[%emt 0:00:00]} Kg7 {[%emt 0:00:15]} 28. b4 {[%emt 0:00:26]} Be7 {[%emt 0:13:21]} 29. Rc7 {[%emt 0:02:49]} Rxc7 {[%emt 0:14:51]} 30. Bxc7 {[%emt 0:00:02]} Nf6 {[%emt 0:00:13]} 31. Rb5 {[%emt 0:00:30]} Rc8 {[%emt 0:00:14]} 32. Bxb6 {[%emt 0:02:05]} Rc1+ {[%emt 0:00:05]} 33. Kg2 {[%emt 0:00:12]} Ra1 {[%emt 0:00:03]} 34. Ra5 {[%emt 0:01:07]} Ra2 {[%emt 0:00:26]} 35. Bd4 {[%emt 0:00:22]} Kf8 {[%emt 0:00:20]} 36. Ra8+ {[%emt 0:00:37]} Kg7 {[%emt 0:00:02]} 37. Bd5 {[%emt 0:02:17]} Rd2 {[%emt 0:00:24]} 38. Ra7 {[%emt 0:00:37]} Rxd4 {[%emt 0:01:20]} 39. exd4 {[%emt 0:00:07]} Nxd5 {[%emt 0:00:03]} 40. Rd7 {[%emt 0:00:07]} Bxb4 {[%emt 0:00:03]} 41. axb4 {[%emt 0:33:55]} Nxb4 {[%emt 0:30:10]} 42. Rb7 {[%emt 0:02:14]} Nd5 {[%emt 0:00:41]} 43. Rb5 {[%emt 0:00:23]} Nc3 {[%emt 0:00:43]} 44. Rc5 {[%emt 0:00:00]} Ne2 {[%emt 0:00:00]} 45. Rc4 {[%emt 0:00:00]} Kf6 {[%emt 0:00:00]} 46. Kf1 {[%emt 0:00:00]} 1-0

[Event "Nordic Chess-ch 2019"]
[Site "Sarpsborg"]
[Date "2019.06.22"]
[Round "2.17"]
[White "Tunge, Christian"]
[Black "Kreken, Eivind Grunt"]
[Result "1-0"]
[ECO "A34"]
[WhiteElo "2027"]
[BlackElo "1784"]
[Annotator "NA"]
[PlyCount "65"]
[EventDate "2019.06.21"]
[EventType "swiss"]
[EventCountry "NOR"]
[SourceTitle "playchess.com"]
[Source "ChessBase"]
[SourceQuality "1"]
[TimeControl "40/5400+30:1800+30"]

1. c4 {[%emt 0:00:00]} c5 {[%emt 0:00:00]} 2. g3 {[%emt 0:00:34]} Nf6 {[%emt 0:00:00]} 3. Bg2 {[%emt 0:00:21]} d5 {[%emt 0:00:06]} 4. cxd5 {[%emt 0:01:08]} Nxd5 {[%emt 0:00:03]} 5. Nc3 {[%emt 0:00:23]} Nc7 {[%emt 0:00:02]} 6. Qa4+ {[%emt 0:24:40]} Bd7 {[%emt 0:03:40]} 7. Qc4 {[%emt 0:01:59]} Nc6 {[%emt 0:03:56]} 8. Qxc5 {[%emt 0:04:36]} e5 {[%emt 0:04:35]} 9. Qe3 {[%emt 0:13:42]} Ne6 {[%emt 0:05:01]} 10. Nf3 {[%emt 0:07:35]} Ncd4 {[%emt 0:04:47]} 11. O-O {[%emt 0:03:40]} Nc2 {[%emt 0:02:27]} 12. Qxe5 {[%emt 0:01:44]} Nxa1 {[%emt 0:01:22]} 13. d4 {[%emt 0:01:40]} Nc2 {[%emt 0:23:39]} 14. d5 {[%emt 0:05:20]} Nb4 {[%emt 0:10:17]} 15. dxe6 {[%emt 0:02:51]} Bxe6 {[%emt 0:00:43]} 16. Rd1 {[%emt 0:01:18]} Qb8 {[%emt 0:05:29]} 17. Qb5+ {[%emt 0:06:01]} Nc6 {[%emt 0:00:13]} 18. Bf4 {[%emt 0:00:51]} Qc8 {[%emt 0:00:31]} 19. Ne5 {[%emt 0:02:22]} a6 {[%emt 0:00:18]} 20. Qa4 {[%emt 0:00:26]} Be7 {[%emt 0:00:45]} 21. Nxc6 {[%emt 0:01:01]} bxc6 {[%emt 0:00:03]} 22. Bxc6+ {[%emt 0:00:09]} Kf8 {[%emt 0:00:15]} 23. Bxa8 {[%emt 0:01:13]} Qxa8 {[%emt 0:00:11]} 24. Bd6 {[%emt 0:03:10]} Bxd6 {[%emt 0:00:15]} 25. Rxd6 {[%emt 0:00:08]} a5 {[%emt 0:00:15]} 26. Qh4 {[%emt 0:03:15]} Ke8 {[%emt 0:00:20]} 27. Nb5 {[%emt 0:03:44]} Qb8 {[%emt 0:00:13]} 28. a4 {[%emt 0:02:22]} Qc8 {[%emt 0:01:00]} 29. Na7 {[%emt 0:00:42]} Qc7 {[%emt 0:01:14]} 30. Qd4 {[%emt 0:00:58]} Bh3 {[%emt 0:00:35]} 31. Nc6 {[%emt 0:00:28]} Bd7 {[%emt 0:00:35]} 32. Qe5+ {[%emt 0:00:26]} Kf8 {[%emt 0:00:13]} 33. Qe7+ {[%emt 0:00:12]} 1-0

[Event "Nordic Chess-ch 2019"]
[Site "Sarpsborg"]
[Date "2019.06.22"]
[Round "2.18"]
[White "Henriksen, Morgan"]
[Black "Kristiansen, Rune Harald"]
[Result "0-1"]
[ECO "A53"]
[WhiteElo "1717"]
[BlackElo "1849"]
[Annotator "NA"]
[PlyCount "72"]
[EventDate "2019.06.21"]
[EventType "swiss"]
[EventCountry "NOR"]
[SourceTitle "playchess.com"]
[Source "ChessBase"]
[SourceQuality "1"]
[TimeControl "40/5400+30:1800+30"]

1. d4 {[%emt 0:00:00]} d6 {[%emt 0:00:01]} 2. c4 {[%emt 0:00:01]} Nf6 {[%emt 0:00:13]} 3. Nc3 {[%emt 0:00:10]} Nbd7 {[%emt 0:00:18]} 4. e4 {[%emt 0:00:49]} e5 {[%emt 0:00:52]} 5. Be3 {[%emt 0:04:23]} c6 {[%emt 0:02:43]} 6. f3 {[%emt 0:01:54]} Be7 {[%emt 0:03:22]} 7. Nh3 {[%emt 0:03:24]} Qc7 {[%emt 0:05:02]} 8. Nf2 {[%emt 0:00:38]} Nf8 {[%emt 0:09:09]} 9. d5 {[%emt 0:04:06]} Ng6 {[%emt 0:03:29]} 10. Nd3 {[%emt 0:03:47]} Bd7 {[%emt 0:04:22]} 11. Be2 {[%emt 0:04:44]} h5 {[%emt 0:05:09]} 12. Qd2 {[%emt 0:02:16]} c5 {[%emt 0:03:36]} 13. O-O {[%emt 0:02:32]} a6 {[%emt 0:07:31]} 14. a4 {[%emt 0:08:10]} a5 {[%emt 0:04:31]} 15. Bg5 {[%emt 0:03:48]} Ng8 {[%emt 0:06:09]} 16. Bxe7 {[%emt 0:03:29]} N8xe7 {[%emt 0:00:48]} 17. f4 {[%emt 0:02:21]} f6 {[%emt 0:10:45]} 18. fxe5 dxe5 {[%emt 0:04:02]} 19. Qd1 {[%emt 0:08:17]} h4 {[%emt 0:04:21]} 20. Bg4 {[%emt 0:01:13]} b6 {[%emt 0:01:30]} 21. Bxd7+ {[%emt 0:02:56]} Qxd7 {[%emt 0:00:09]} 22. Nb5 {[%emt 0:00:43]} O-O-O {[%emt 0:06:19]} 23. b4 {[%emt 0:08:58]} h3 {[%emt 0:00:45]} 24. g3 {[%emt 0:00:48]} cxb4 {[%emt 0:00:27]} 25. c5 {[%emt 0:03:04]} Nxd5 {[%emt 0:05:06]} 26. exd5 {[%emt 0:03:50]} Qxd5 {[%emt 0:00:33]} 27. Qf3 {[%emt 0:04:38]} Qxf3 {[%emt 0:03:20]} 28. Rxf3 {[%emt 0:02:31]} e4 {[%emt 0:00:08]} 29. Nd6+ {[%emt 0:01:41]} Rxd6 {[%emt 0:00:11]} 30. cxd6 {[%emt 0:00:08]} exf3 {[%emt 0:00:09]} 31. Rd1 {[%emt 0:01:22]} Kd7 {[%emt 0:01:07]} 32. Nb2 {[%emt 0:00:39]} Ne5 {[%emt 0:00:29]} 33. Kf2 {[%emt 0:00:53]} Rc8 {[%emt 0:00:28]} 34. Rd2 {[%emt 0:01:05]} b3 {[%emt 0:02:00]} 35. Nd1 {[%emt 0:06:36]} Rc2 {[%emt 0:00:14]} 36. Ke3 {[%emt 0:00:20]} Nc4+ {[%emt 0:00:11]} 0-1

[Event "Nordic Chess-ch 2019"]
[Site "Sarpsborg"]
[Date "2019.06.22"]
[Round "2.19"]
[White "Fernandez, Juan Pablo"]
[Black "Eiding, Amanda Mai Irgens"]
[Result "1-0"]
[ECO "A25"]
[WhiteElo "2066"]
[BlackElo "1655"]
[Annotator "NA"]
[PlyCount "61"]
[EventDate "2019.06.21"]
[EventType "swiss"]
[EventCountry "NOR"]
[SourceTitle "playchess.com"]
[Source "ChessBase"]
[SourceQuality "1"]
[TimeControl "40/5400+30:1800+30"]

1. c4 {[%emt 0:00:00]} e5 {[%emt 0:00:00]} 2. g3 {[%emt 0:00:00]} Nc6 {[%emt 0:00:00]} 3. Nc3 {[%emt 0:00:00]} Bc5 {[%emt 0:00:00]} 4. Bg2 {[%emt 0:01:11]} a6 {[%emt 0:01:02]} 5. Nf3 {[%emt 0:00:55]} d6 {[%emt 0:00:14]} 6. O-O {[%emt 0:03:11]} Nf6 {[%emt 0:02:40]} 7. e3 {[%emt 0:00:57]} Ba7 {[%emt 0:02:51]} 8. d4 {[%emt 0:10:49]} Bg4 {[%emt 0:13:59]} 9. h3 {[%emt 0:06:33]} exd4 {[%emt 0:09:31]} 10. exd4 {[%emt 0:07:21]} Bxf3 {[%emt 0:00:18]} 11. Bxf3 {[%emt 0:08:16]} O-O {[%emt 0:06:00]} 12. Be3 {[%emt 0:05:31]} Qc8 {[%emt 0:02:47]} 13. Bg2 {[%emt 0:01:07]} Ne7 {[%emt 0:03:35]} 14. g4 {[%emt 0:04:04]} c6 {[%emt 0:03:45]} 15. Bg5 {[%emt 0:08:10]} Ng6 {[%emt 0:02:56]} 16. Qd2 {[%emt 0:02:00]} Nd7 {[%emt 0:02:38]} 17. Rad1 {[%emt 0:04:17]} h6 {[%emt 0:04:23]} 18. Be3 {[%emt 0:01:14]} b5 {[%emt 0:02:03]} 19. Ne4 {[%emt 0:02:33]} Bb8 {[%emt 0:04:25]} 20. Qb4 {[%emt 0:03:49]} a5 {[%emt 0:03:07]} 21. Qc3 {[%emt 0:07:23]} bxc4 {[%emt 0:01:48]} 22. d5 {[%emt 0:00:53]} cxd5 {[%emt 0:02:06]} 23. Rxd5 {[%emt 0:00:47]} Ra6 {[%emt 0:00:39]} 24. Rfd1 {[%emt 0:03:35]} Nge5 {[%emt 0:09:05]} 25. Nxd6 {[%emt 0:03:16]} Bxd6 {[%emt 0:00:12]} 26. Rxd6 {[%emt 0:00:10]} Nd3 {[%emt 0:00:33]} 27. R1xd3 {[%emt 0:01:31]} Rxd6 {[%emt 0:02:24]} 28. Rxd6 {[%emt 0:00:09]} Qc7 {[%emt 0:00:16]} 29. Qd4 {[%emt 0:02:13]} Nf6 {[%emt 0:01:22]} 30. Rxf6 {[%emt 0:08:02]} gxf6 {[%emt 0:00:37]} 31. Bxh6 {[%emt 0:01:23]} 1-0

[Event "Nordic Chess-ch 2019"]
[Site "Sarpsborg"]
[Date "2019.06.22"]
[Round "2.20"]
[White "Strand, Vetle Bjorge"]
[Black "Blauhut, Holger"]
[Result "0-1"]
[ECO "D52"]
[WhiteElo "1609"]
[BlackElo "2041"]
[Annotator "NA"]
[PlyCount "151"]
[EventDate "2019.06.21"]
[EventType "swiss"]
[EventCountry "NOR"]
[SourceTitle "playchess.com"]
[Source "ChessBase"]
[SourceQuality "1"]
[TimeControl "40/5400+30:1800+30"]

1. d4 {[%emt 0:00:00]} d5 {[%emt 0:00:00]} 2. c4 {[%emt 0:00:00]} e6 {[%emt 0:00:00]} 3. Nc3 {[%emt 0:00:00]} Nf6 {[%emt 0:00:18]} 4. Bg5 {[%emt 0:00:00]} Nbd7 {[%emt 0:00:19]} 5. e3 {[%emt 0:00:08]} c6 {[%emt 0:00:05]} 6. Nf3 {[%emt 0:00:17]} Qa5 {[%emt 0:00:52]} 7. Nd2 {[%emt 0:08:25]} Bb4 {[%emt 0:03:15]} 8. Qc1 {[%emt 0:02:56]} dxc4 {[%emt 0:04:50] D52: Queen's Gambit Declined: Cambridge Springs Variation} 9. Bxf6 {[%emt 0:01:05]} Nxf6 {[%emt 0:00:14]} 10. Nxc4 {[%emt 0:02:15]} Qg5 {[%emt 0:04:27]} (10... Qd5 11. Nd2 Qd8 12. a3 Be7 13. Be2 Qc7 14. Nc4 O-O 15. O-O b6 16. b4 {1-0 (56) Postny,E (2623)-Zifroni,D (2442) Israel 2019}) 11. Nd2 $146 {[%emt 0:09:31]} ({Predecessor:} 11. a3 Bxc3+ 12. Qxc3 O-O 13. Ne5 Nd7 14. Nf3 Qe7 15. Be2 Re8 16. O-O {0-1 (50) Collas,S (2330)-Perez Candelario,M (2504) Campillos 2004}) 11... O-O {[%emt 0:02:20]} 12. a3 {[%emt 0:01:01]} Be7 {[%emt 0:04:09]} 13. g3 {[%emt 0:01:57]} Rd8 {[%emt 0:16:20]} 14. Bg2 {[%emt 0:02:34]} Qh6 {[%emt 0:03:00]} 15. Nce4 {[%emt 0:08:12]} e5 {[%emt 0:11:31]} 16. Nxf6+ {[%emt 0:04:22]} Bxf6 {[%emt 0:00:25]} 17. dxe5 {[%emt 0:02:18]} Bxe5 {[%emt 0:00:09]} 18. O-O {[%emt 0:01:12]} Bh3 {[%emt 0:01:01]} 19. Nc4 {[%emt 0:03:51]} Bxg2 {[%emt 0:00:46]} 20. Kxg2 {[%emt 0:00:07]} Bc7 {[%emt 0:00:23]} 21. Qc2 {[%emt 0:03:23]} Qh5 {[%emt 0:04:21]} 22. Nd2 {[%emt 0:14:26]} Rd6 {[%emt 0:01:43]} 23. Rad1 {[%emt 0:04:14]} Rh6 {[%emt 0:01:34]} 24. h4 {[%emt 0:02:55]} Qg4 {[%emt 0:08:28]} 25. Nf3 {[%emt 0:04:42]} Rg6 {[%emt 0:05:38]} 26. Rd4 {[%emt 0:04:41]} Qh5 {[%emt 0:04:22]} 27. Rd7 {[%emt 0:03:16]} Rc8 {[%emt 0:00:10]} 28. Rfd1 {[%emt 0:01:17]} h6 {[%emt 0:00:12]} 29. Qb3 {[%emt 0:01:00]} Rf6 {[%emt 0:00:42]} 30. e4 {[%emt 0:06:15]} Bb6 {[%emt 0:13:42]} 31. Rxb7 {[%emt 0:02:09]} g5 {[%emt 0:00:36]} 32. hxg5 {[%emt 0:01:54]} hxg5 {[%emt 0:00:02]} 33. Rh1 {[%emt 0:01:08]} Qg6 {[%emt 0:00:06]} 34. e5 {[%emt 0:02:03]} Rf5 {[%emt 0:00:18]} 35. Rf1 {[%emt 0:00:59]} Rd8 {[%emt 0:03:56]} 36. Re7 {[%emt 0:01:16]} Kf8 {[%emt 0:01:53]} 37. Rb7 {[%emt 0:00:12]} c5 {[%emt 0:00:08]} 38. Qc2 {[%emt 0:01:13]} g4 {[%emt 0:02:34]} 39. Nh4 {[%emt 0:00:35]} Qc6+ {[%emt 0:00:06]} 40. Kg1 {[%emt 0:00:20]} Rh5 {[%emt 0:01:30]} 41. Rxb6 {[%emt 0:30:58]} axb6 {[%emt 0:30:06]} 42. f3 {[%emt 0:00:05]} gxf3 {[%emt 0:02:15]} 43. Nxf3 {[%emt 0:00:51]} Qh6 {[%emt 0:00:40]} 44. Nh4 {[%emt 0:00:18]} Rxh4 {[%emt 0:00:00]} 45. gxh4 {[%emt 0:00:00]} Rd2 {[%emt 0:00:00]} 46. Qf5 {[%emt 0:00:00]} Qg7+ {[%emt 0:00:00]} 47. Qg5 {[%emt 0:00:00]} Qxg5+ {[%emt 0:00:00]} 48. hxg5 {[%emt 0:00:00]} Ke7 {[%emt 0:00:00]} 49. b4 {[%emt 0:00:00]} c4 {[%emt 0:00:00]} 50. Rc1 {[%emt 0:00:00]} b5 {[%emt 0:00:00]} 51. Rc3 {[%emt 0:00:00]} Rb2 {[%emt 0:00:00]} (51... Ke6 $142 52. Rf3 Rd5) 52. Rc1 {[%emt 0:00:00]} Ke6 {[%emt 0:00:00]} 53. Kf1 {[%emt 0:00:00]} Kxe5 {[%emt 0:00:00]} 54. Ke1 {[%emt 0:00:00]} Kf5 $2 {[%emt 0:00:00]} (54... Kd4 $19 55. Rd1+ Ke3) 55. Kd1 $2 {[%emt 0:00:00]} (55. Rd1 {was the only chance.}) 55... Ra2 {[%emt 0:00:00]} (55... Ke4 $142 56. Rc3 Rb3) 56. Rc3 {[%emt 0:00:00]} Kxg5 {[%emt 0:00:00]} 57. Kc1 {[%emt 0:00:10]} f5 {[%emt 0:00:00]} 58. Kb1 {[%emt 0:00:13]} Rg2 {[%emt 0:00:00]} 59. a4 {[%emt 0:01:11]} bxa4 {[%emt 0:00:00]} 60. Rxc4 {[%emt 0:00:07]} Rg4 {[%emt 0:00:00]} 61. Rc2 {[%emt 0:01:06]} Rxb4+ {[%emt 0:00:00]} 62. Kc1 {[%emt 0:00:05]} a3 {[%emt 0:00:00]} 63. Ra2 {[%emt 0:00:37]} Rb3 {[%emt 0:00:00]} 64. Kd1 {[%emt 0:00:21]} f4 {[%emt 0:00:00]} 65. Ke1 {[%emt 0:00:05]} f3 {[%emt 0:00:00]} 66. Ra1 {[%emt 0:01:08]} Kg4 {[%emt 0:00:00]} 67. Kf2 {[%emt 0:00:23]} Rb2+ {[%emt 0:00:00]} 68. Ke3 {[%emt 0:00:53]} a2 {[%emt 0:00:00]} 69. Rg1+ {[%emt 0:00:55]} Rg2 {[%emt 0:00:00]} 70. Rc1 {[%emt 0:00:16]} Kg3 {[%emt 0:00:00]} 71. Ke4 {[%emt 0:01:24]} Rb2 {[%emt 0:00:00]} 72. Rg1+ {[%emt 0:00:24]} Kh2 {[%emt 0:00:00]} 73. Ra1 {[%emt 0:00:06]} Kg2 {[%emt 0:00:00]} 74. Kd3 {[%emt 0:00:42]} f2 {[%emt 0:00:00]} 75. Kc3 {[%emt 0:00:03]} Re2 {[%emt 0:00:00]} 76. Rd1 {[%emt 0:00:53]} 0-1